bitfinex-derivatives/quotes_SOLF0:USTF0_20250101
["timestamp","ask_amount","ask_price","bid_price","bid_amount"]
[1735741117894,2.6238,190.94,190.87,2.6246]
[1735741118090,2.6238,190.94,190.84,13.18890274]
[1735741118492,1.5345,190.96,190.84,13.18890274]
[1735741119093,1.5345,190.96,190.88,2.6245]
[1735741119292,1.5345,190.96,190.84,13.18890274]
[1735741120489,2.624,190.92,190.87,2.6246]
[1735741121194,13.18890274,190.94,190.83,3.04]
[1735741121695,13.18890274,190.91,190.81,13.18890274]
[1735741121889,16.24890274,190.91,190.8,6.2183]
[1735741122692,16.24890274,190.91,190.8,3.1583]
[1735741123090,1.6419,190.9,190.8,1.6362]
[1735741123492,1.6419,190.9,190.81,2.6253]
[1735741123493,2.6248,190.87,190.81,2.6253]
[1735741124696,2.6249,190.86,190.81,2.6253]
[1735741124994,13.18890274,190.88,190.75,13.18890274]
[1735741125188,13.18890274,190.88,190.79,2.6257]
[1735741125391,14.74000274,190.88,190.79,2.6257]
[1735741127795,2.625,190.85,190.8,2.6256]
[1735741129096,3.06,190.86,190.82,2.6252]
[1735741129394,2.6246,190.88,190.78,13.18890274]
[1735741129787,2.6246,190.88,190.82,2.6252]
[1735741129998,2.6246,190.88,190.78,13.18890274]
[1735741130394,2.6246,190.88,190.82,2.6253]
[1735741130993,2.6247,190.87,190.82,2.6253]
[1735741131498,1.5105,190.89,190.78,13.18890274]
[1735741131689,13.18890274,190.88,190.78,13.18890274]
[1735741132094,2.6249,190.86,190.8,2.6256]
[1735741132600,13.18890274,190.88,190.8,2.6256]
[1735741132795,2.6248,190.87,190.78,13.18890274]
[1735741133697,13.18890274,190.88,190.81,2.6254]
[1735741133898,2.6248,190.86,190.81,2.6254]
[1735741134496,13.18890274,190.88,190.75,16.24890274]
[1735741135099,2.6249,190.85,190.8,2.6256]
[1735741137400,2.6253,190.82,190.77,2.6259]
[1735741137597,2.6253,190.82,190.75,16.24890274]
[1735741138202,2.6253,190.82,190.77,8.46145277]
[1735741138501,2.6253,190.82,190.78,2.6259]
[1735741141105,8.46145277,190.81,190.73,3.0706]
[1735741141299,8.46145277,190.79,190.73,1.5008]
[1735741141695,8.46145277,190.79,190.74,8.46145277]
[1735741142100,8.46145277,190.79,190.76,2.6261]
[1735741142302,2.6256,190.8,190.76,2.6261]
[1735741142705,2.6253,190.83,190.78,8.46145277]
[1735741143306,8.46145277,190.85,190.78,8.46145277]
[1735741143907,8.46145277,190.87,190.82,8.46145277]
[1735741144210,3.06,190.88,190.79,13.21369401]
[1735741144603,5.6846,190.88,190.83,2.6251]
[1735741144809,3.06,190.88,190.83,2.6251]
[1735741146506,2.6246,190.87,190.83,2.6251]
[1735741146707,3.06,190.88,190.79,13.21369401]
[1735741146902,16.27369401,190.88,190.77,1.5005]
[1735741147408,16.27369401,190.88,190.79,2.6257]
[1735741147807,13.21369401,190.85,190.73,14.71449401]
[1735741148005,13.21369401,190.85,190.75,2.6262]
[1735741148206,2.6256,190.81,190.75,2.6262]
[1735741148709,2.6256,190.8,190.75,2.6263]
[1735741150202,3.06,190.83,190.75,2.6263]
[1735741151409,2.6257,190.8,190.75,2.6263]
[1735741153005,13.21369401,190.82,190.71,3.06]
[1735741153308,13.21369401,190.82,190.73,2.6265]
[1735741153502,4.5922,190.81,190.73,2.6265]
[1735741153703,4.5922,190.81,190.7,17.84299401]
[1735741154811,7.2177,190.81,190.76,2.6261]
[1735741155011,4.5922,190.81,190.76,2.6261]
[1735741155213,13.21369401,190.82,190.76,2.6261]
[1735741156413,2.6256,190.8,190.76,2.6261]
[1735741156619,13.21369401,190.82,190.7,17.84299401]
[1735741156812,13.21369401,190.82,190.74,2.6264]
[1735741158113,4.5643,190.87,190.78,2.6259]
[1735741158414,3.06,190.86,190.76,13.21369401]
[1735741158619,2.6249,190.85,190.76,16.27369401]
[1735741158912,2.6249,190.85,190.8,2.6255]
[1735741160315,2.6249,190.85,190.81,2.6254]
[1735741160511,2.9768,190.87,190.77,1.4874]
[1735741160706,2.6247,190.87,190.83,2.6251]
[1735741163518,2.6248,190.86,190.82,2.6253]
[1735741163718,2.6248,190.86,190.79,13.21369401]
[1735741164419,2.6248,190.86,190.81,2.6253]
[1735741165320,2.6248,190.86,190.81,2.6255]
[1735741165521,13.21369401,190.88,190.77,4.6635]
[1735741165716,2.625,190.85,190.77,4.6635]
[1735741166020,13.21369401,190.88,190.77,4.6635]
[1735741166409,2.6252,190.84,190.79,2.6257]
[1735741166614,13.21369401,190.88,190.79,2.6257]
[1735741166921,2.6252,190.83,190.78,2.6259]
[1735741167315,16.27369401,190.85,190.74,16.27369401]
[1735741167515,2.6256,190.8,190.72,3.06]
[1735741169620,2.6256,190.8,190.75,2.6262]
[1735741169922,13.21369401,190.82,190.72,3.06]
[1735741170123,2.6254,190.82,190.77,2.6259]
[1735741170621,4.7267,190.84,190.77,2.6259]
[1735741171520,2.6255,190.82,190.77,2.6259]
[1735741172223,2.6255,190.81,190.77,2.6259]
[1735741172723,4.7267,190.84,190.77,2.6259]
[1735741173027,4.7267,190.84,190.73,13.21369401]
[1735741173215,4.7267,190.84,190.79,2.6256]
[1735741174223,7.3519,190.84,190.79,2.6256]
[1735741174421,4.7267,190.84,190.79,2.6256]
[1735741174724,4.7267,190.84,190.73,13.21369401]
[1735741174725,2.6253,190.82,190.73,13.21369401]
[1735741174928,2.6253,190.82,190.74,4.08769889]
[1735741175122,2.6253,190.82,190.73,13.21369401]
[1735741175424,2.6253,190.82,190.78,2.6259]
[1735741175821,5.7771,190.84,190.73,13.21369401]
[1735741176021,5.7771,190.84,190.79,2.6256]
[1735741176423,2.6252,190.84,190.79,2.6256]
[1735741176826,2.6249,190.86,190.81,2.6254]
[1735741177725,3.06,190.87,190.77,3.06]
[1735741177925,2.625,190.85,190.8,2.6256]
[1735741178826,3.06,190.87,190.75,3.04]
[1735741180021,2.6255,190.82,190.77,2.6259]
[1735741180621,2.6255,190.82,190.75,3.04]
[1735741180622,2.6252,190.83,190.78,2.6257]
[1735741180920,2.6252,190.83,190.75,3.04]
[1735741182629,3.06,190.87,190.75,3.04]
[1735741182823,3.06,190.87,190.73,3.04]
[1735741183027,3.06,190.87,190.76,2.6261]
[1735741183326,3.06,190.87,190.73,3.04]
[1735741183529,3.06,190.87,190.78,2.6258]
[1735741183727,3.06,190.87,190.73,3.04]
[1735741184023,2.6256,190.81,190.77,2.626]
[1735741184229,11.08874405,190.81,190.77,2.626]
[1735741184631,8.68354586,190.89,190.74,2.6263]
[1735741184632,11.08894405,190.79,190.74,2.6263]
[1735741186832,11.08914405,190.77,190.73,2.6266]
[1735741187629,2.6262,190.76,190.72,2.6267]
[1735741188039,8.46314405,190.75,190.69,8.46314405]
[1735741188239,11.08954405,190.75,190.7,2.6269]
[1735741188437,8.46314405,190.75,190.7,2.6269]
[1735741188635,8.46314405,190.73,190.69,2.6271]
[1735741189444,11.08974405,190.73,190.69,2.6271]
[1735741190344,2.6266,190.73,190.69,2.6271]
[1735741190745,2.6264,190.74,190.69,2.6271]
[1735741191943,2.6269,190.71,190.66,2.6275]
[1735741192245,13.23441704,190.73,190.65,1.76070058]
[1735741193045,2.6269,190.71,190.66,2.6275]
[1735741194350,2.627,190.7,190.66,2.6275]
[1735741196548,2.627,190.7,190.61,16.27441704]
[1735741196753,2.627,190.7,190.65,2.6277]
[1735741197252,2.6269,190.71,190.66,2.6275]
[1735741198552,2.6267,190.72,190.68,2.6273]
[1735741198954,2.6269,190.71,190.66,2.6274]
[1735741199848,2.6273,190.68,190.63,2.6279]
[1735741200053,13.23441704,190.7,190.6,1.5097]
[1735741201657,13.23441704,190.73,190.61,13.23441704]
[1735741201851,3.04,190.75,190.64,13.23441704]
[1735741202053,3.04,190.75,190.64,16.27441704]
[1735741202254,2.6267,190.73,190.64,16.27441704]
[1735741202553,3.04,190.75,190.64,16.27441704]
[1735741202748,3.04,190.75,190.71,2.6268]
[1735741202947,3.04,190.78,190.67,13.23441704]
[1735741203952,2.6261,190.77,190.7,2.6269]
[1735741204157,2.6261,190.77,190.67,13.23441704]
[1735741204561,2.6261,190.77,190.71,2.6268]
[1735741204758,2.6262,190.76,190.71,2.6268]
[1735741204957,3.04,190.78,190.67,13.23441704]
[1735741205356,2.6265,190.74,190.69,2.627]
[1735741205557,3.04,190.78,190.67,13.23441704]
[1735741206159,2.6264,190.75,190.7,2.627]
[1735741206459,16.27441704,190.76,190.64,16.27441704]
[1735741207460,2.6266,190.73,190.68,2.6271]
[1735741207962,2.6265,190.74,190.69,2.6271]
[1735741208154,2.6265,190.74,190.64,16.27441704]
[1735741209159,2.6265,190.74,190.69,2.627]
[1735741210961,2.6263,190.75,190.64,16.27441704]
[1735741211464,2.6263,190.75,190.7,2.6269]
[1735741212357,2.6263,190.75,190.71,2.6268]
[1735741212561,13.23441704,190.76,190.64,16.27441704]
[1735741213065,15.86071704,190.76,190.7,2.6269]
[1735741213260,13.23441704,190.76,190.6,14.74411704]
[1735741213465,13.23441704,190.76,190.61,3.04]
[1735741213665,13.23441704,190.76,190.63,13.23441704]
[1735741213963,2.6267,190.72,190.63,13.23441704]
[1735741214365,2.6264,190.75,190.7,2.627]
[1735741214570,13.23441704,190.76,190.7,2.627]
[1735741215568,2.6265,190.74,190.66,3.04]
[1735741215770,13.23441704,190.76,190.66,3.04]
[1735741215969,2.6266,190.73,190.66,3.04]
[1735741216467,2.6266,190.73,190.68,2.6271]
[1735741217270,2.6266,190.73,190.69,2.6271]
[1735741217772,2.6264,190.75,190.66,3.04]
[1735741217972,2.6264,190.75,190.7,2.6269]
[1735741218373,8.46935908,190.73,190.7,2.6269]
[1735741218574,8.46935908,190.73,190.66,3.04]
[1735741218878,8.46935908,190.73,190.68,2.6272]
[1735741219169,11.09605908,190.73,190.68,2.6272]
[1735741219372,11.09605908,190.73,190.69,2.6271]
[1735741219972,11.09625908,190.71,190.67,2.6274]
[1735741220170,8.46935908,190.71,190.64,3.04]
[1735741220970,8.46935908,190.71,190.66,2.6274]
[1735741222270,2.627,190.7,190.66,2.6274]
[1735741224376,11.09645908,190.69,190.65,2.6276]
[1735741224680,8.46935908,190.67,190.61,11.50935908]
[1735741224882,8.46935908,190.67,190.63,2.6278]
[1735741225676,8.46935908,190.67,190.61,11.50935908]
[1735741225880,8.46935908,190.67,190.64,2.6277]
[1735741227783,58.33488032,190.75,190.61,8.46935908]
[1735741227784,8.46935908,190.69,190.61,8.46935908]
[1735741227982,8.46935908,190.69,190.63,8.46935908]
[1735741228476,8.46935908,190.71,190.63,8.46935908]
[1735741228683,8.46935908,190.71,190.65,8.46935908]
[1735741229078,8.46935908,190.71,190.69,2.627]
[1735741229287,8.46935908,190.71,190.65,8.46935908]
[1735741229981,8.46935908,190.71,190.69,2.627]
[1735741230982,8.46935908,190.71,190.7,2.627]
[1735741231181,8.46935908,190.73,190.7,2.627]
[1735741231381,2.6263,190.76,190.71,2.6268]
[1735741231583,2.6263,190.76,190.69,8.46935908]
[1735741231584,11.50935908,190.77,190.69,8.46935908]
[1735741231986,11.50935908,190.77,190.75,2.6263]
[1735741231987,8.46935908,190.77,190.75,2.6263]
[1735741232285,5.6942,190.79,190.73,8.46935908]
[1735741232286,8.46935908,190.79,190.73,8.46935908]
[1735741233385,8.46935908,190.79,190.75,2.6263]
[1735741234080,8.46935908,190.77,190.74,2.6264]
[1735741234680,8.46935908,190.77,190.73,2.6265]
[1735741236186,8.46935908,190.75,190.69,8.46935908]
[1735741236989,8.46935908,190.73,190.67,10.09615908]
[1735741237589,8.46935908,190.73,190.69,2.6271]
[1735741237786,8.46935908,190.73,190.66,3.0388]
[1735741237994,8.46935908,190.73,190.67,4.09162929]
[1735741238195,2.6266,190.73,190.68,2.6271]
[1735741238495,13.23552394,190.74,190.68,2.6271]
[1735741239189,2.6266,190.73,190.68,2.6271]
[1735741240394,2.6266,190.73,190.69,2.6271]
[1735741241496,13.23552394,190.74,190.69,2.6271]
[1735741241697,15.86192394,190.74,190.69,2.6271]
[1735741242697,2.6267,190.73,190.67,2.6273]
[1735741243092,2.6267,190.73,190.69,2.6271]
[1735741244199,13.23552394,190.74,190.69,2.6271]
[1735741244898,15.86192394,190.74,190.69,2.6271]
[1735741248605,2.6266,190.73,190.69,2.6271]
[1735741248900,13.23552394,190.74,190.65,3.04]
[1735741249606,2.6268,190.72,190.65,5.6675]
[1735741250205,2.6268,190.71,190.65,5.6675]
[1735741250907,2.6268,190.71,190.65,2.6275]
[1735741251307,2.627,190.7,190.65,2.6275]
[1735741252916,13.23552394,190.74,190.65,2.6275]
[1735741253212,2.6271,190.69,190.65,2.6275]
[1735741255320,13.23552394,190.74,190.65,2.6275]
[1735741255519,2.6273,190.68,190.65,2.6275]
[1735741255719,13.23552394,190.74,190.63,2.6279]
[1735741255918,16.42622394,190.74,190.63,2.6279]
[1735741256119,18.00612394,190.74,190.63,2.6279]
[1735741257022,18.00612394,190.74,190.64,2.6278]
[1735741257214,2.6268,190.71,190.64,2.6278]
[1735741257414,18.00612394,190.74,190.64,2.6278]
[1735741257914,2.6272,190.69,190.64,2.6278]
[1735741259019,2.6272,190.69,190.65,2.6277]
[1735741260220,11.0998138,190.69,190.65,2.6277]
[1735741265121,8.4726138,190.67,190.57,51.55684168]
[1735741265326,8.4726138,190.65,190.59,8.4726138]
[1735741265628,8.4726138,190.65,190.62,2.628]
[1735741265927,8.4726138,190.65,190.59,8.4726138]
[1735741267432,8.4726138,190.65,190.63,2.6279]
[1735741270327,8.4726138,190.65,190.61,2.6281]
[1735741270733,8.4726138,190.65,190.59,8.4726138]
[1735741271134,8.4726138,190.65,190.62,2.628]
[1735741272034,8.4726138,190.65,190.61,2.6282]
[1735741273836,8.4726138,190.65,190.62,2.6281]
[1735741275333,8.4726138,190.65,190.6,2.6283]
[1735741275537,8.4726138,190.65,190.58,11.5126138]
[1735741276231,8.4726138,190.69,190.62,8.4726138]
[1735741276834,8.4726138,190.69,190.64,2.6278]
[1735741277034,8.4726138,190.69,190.62,8.4726138]
[1735741277237,8.4726138,190.69,190.64,2.6278]
[1735741277738,8.4726138,190.67,190.64,2.6278]
[1735741277938,8.4726138,190.67,190.6,8.4726138]
[1735741278236,11.1001138,190.67,190.62,2.628]
[1735741281538,8.4726138,190.63,190.6,2.6282]
[1735741281744,8.4726138,190.61,190.57,50.02444168]
[1735741282235,8.4726138,190.61,190.58,2.6285]
[1735741282636,8.4726138,190.61,190.57,50.02444168]
[1735741283536,8.4726138,190.63,190.57,50.02444168]
[1735741283834,8.67949845,190.72,190.61,8.4726138]
[1735741284035,8.4726138,190.69,190.64,2.6277]
[1735741284233,8.4726138,190.69,190.61,8.4726138]
[1735741284841,8.4726138,190.69,190.65,2.6276]
[1735741285243,8.4726138,190.67,190.62,2.628]
[1735741286140,8.4726138,190.65,190.6,2.6282]
[1735741286333,8.4726138,190.63,190.57,3.04]
[1735741287540,8.4726138,190.63,190.59,2.6285]
[1735741289049,8.4726138,190.63,190.61,2.6282]
[1735741289943,8.4726138,190.63,190.62,2.6281]
[1735741290144,8.4726138,190.67,190.6,8.4726138]
[1735741290851,8.4726138,190.67,190.64,2.6277]
[1735741292251,8.4726138,190.67,190.62,2.628]
[1735741292554,11.1000138,190.67,190.6,8.4726138]
[1735741293555,8.4726138,190.67,190.63,2.6279]
[1735741294556,8.4726138,190.67,190.6,8.4726138]
[1735741294759,8.4726138,190.65,190.6,8.4726138]
[1735741295256,11.72978607,190.73,190.6,8.4726138]
[1735741295451,8.4726138,190.69,190.62,8.4726138]
[1735741295657,8.4726138,190.69,190.62,11.5126138]
[1735741296956,8.4726138,190.69,190.66,2.6274]
[1735741297150,8.4726138,190.71,190.64,8.4726138]
[1735741297546,17.1664169,190.73,190.7,2.627]
[1735741297746,8.4726138,190.73,190.66,8.4726138]
[1735741299461,8.4726138,190.73,190.7,2.6269]
[1735741302662,8.4726138,190.75,190.68,8.4726138]
[1735741302859,8.4726138,190.77,190.7,8.4726138]
[1735741303057,8.4726138,190.77,190.72,8.4726138]
[1735741303263,8.4726138,190.79,190.72,8.4726138]
[1735741304861,11.0985138,190.79,190.72,8.4726138]
[1735741305767,8.4726138,190.77,190.74,2.6264]
[1735741306268,8.4726138,190.75,190.7,8.4726138]
[1735741307465,8.4726138,190.75,190.72,2.6266]
[1735741309268,8.4726138,190.75,190.73,2.6265]
[1735741311965,8.4726138,190.77,190.74,2.6264]
[1735741312861,8.4726138,190.77,190.75,2.6262]
[1735741314870,8.4726138,190.77,190.76,2.6262]
[1735741319371,8.4726138,190.79,190.76,2.6262]
[1735741320867,8.4726138,190.79,190.72,8.4726138]
[1735741321175,11.0984138,190.79,190.72,8.4726138]
[1735741322176,8.4726138,190.77,190.74,2.6264]
[1735741322380,8.4726138,190.77,190.7,8.4726138]
[1735741322580,11.0986138,190.77,190.73,2.6265]
[1735741322781,8.4726138,190.77,190.7,8.4726138]
[1735741323578,8.4726138,190.77,190.72,8.4726138]
[1735741324280,8.4726138,190.77,190.75,2.6262]
[1735741324882,8.4726138,190.77,190.76,2.6262]
[1735741325082,8.4726138,190.79,190.76,2.6262]
[1735741326681,8.4726138,190.79,190.77,2.6259]
[1735741326886,8.4726138,190.81,190.77,2.6259]
[1735741327285,8.4726138,190.81,190.78,2.6258]
[1735741327978,8.4726138,190.81,190.74,8.4726138]
[1735741327979,8.4726138,190.83,190.76,8.4726138]
[1735741328579,8.4726138,190.83,190.79,2.6256]
[1735741328778,8.4726138,190.83,190.76,8.4726138]
[1735741330685,8.4726138,190.83,190.79,2.6256]
[1735741331283,2.6254,190.82,190.78,2.6259]
[1735741331479,8.4726138,190.81,190.74,8.4726138]
[1735741332084,11.0982138,190.81,190.76,2.6261]
[1735741332584,8.4726138,190.77,190.74,2.6264]
[1735741332981,8.4726138,190.77,190.7,11.5126138]
[1735741333179,11.0987138,190.77,190.72,2.6267]
[1735741336289,11.0987138,190.77,190.73,2.6265]
[1735741337489,8.4726138,190.77,190.7,8.4726138]
[1735741337694,8.4726138,190.77,190.72,8.4726138]
[1735741338094,8.4726138,190.79,190.72,8.4726138]
[1735741339293,8.4726138,190.82,190.76,8.4726138]
[1735741341491,8.4726138,190.84,190.78,8.4726138]
[1735741342197,8.4726138,190.84,190.82,2.6253]
[1735741342400,8.4726138,190.86,190.8,8.4726138]
[1735741344399,8.4726138,190.86,190.82,2.6252]
[1735741344902,11.0974138,190.86,190.8,8.4726138]
[1735741345100,8.4726138,190.84,190.78,8.4726138]
[1735741345700,8.4726138,190.84,190.81,2.6254]
[1735741347596,8.4726138,190.84,190.82,2.6253]
[1735741348299,8.4726138,190.86,190.82,2.6253]
[1735741348500,7.1817,190.87,190.82,2.6253]
[1735741348692,8.4726138,190.86,190.82,2.6253]
[1735741349496,8.4726138,190.86,190.78,8.4726138]
[1735741349694,11.0974138,190.86,190.81,2.6255]
[1735741350500,8.4726138,190.84,190.8,2.6256]
[1735741352502,11.0977138,190.84,190.8,2.6256]
[1735741353805,8.4726138,190.82,190.79,2.6257]
[1735741361902,8.4726138,190.82,190.76,8.4726138]
[1735741362103,8.4726138,190.8,190.74,8.4726138]
[1735741364208,8.4726138,190.8,190.76,2.626]
[1735741365915,2.6258,190.79,190.76,2.626]
[1735741366103,2.6258,190.79,190.75,2.6263]
[1735741367103,2.6258,190.79,190.76,2.6261]
[1735741368006,8.4726138,190.8,190.76,2.6261]
[1735741368206,11.0982138,190.8,190.76,2.6261]
[1735741369609,11.0982138,190.8,190.73,8.4726138]
[1735741370409,11.0982138,190.8,190.75,2.6263]
[1735741371106,11.0982138,190.8,190.76,2.6261]
[1735741374618,8.4726138,190.8,190.76,2.6261]
[1735741374918,2.6258,190.79,190.76,2.6261]
[1735741379824,2.6258,190.79,190.75,2.6263]
[1735741380018,8.4726138,190.76,190.69,11.5126138]
[1735741380219,8.4726138,190.76,190.7,4.09241886]
[1735741380419,8.4726138,190.76,190.69,11.5126138]
[1735741380621,11.0989138,190.76,190.71,2.6267]
[1735741380918,8.4726138,190.76,190.69,11.5126138]
[1735741381126,1.6202,190.81,190.73,8.4726138]
[1735741381319,8.4726138,190.79,190.73,8.4726138]
[1735741382726,10.0928138,190.81,190.73,8.4726138]
[1735741383425,12.7183138,190.81,190.76,2.626]
[1735741387229,8.4726138,190.79,190.74,2.6263]
[1735741388218,11.0984138,190.79,190.73,8.4726138]
[1735741388423,11.0984138,190.79,190.75,2.6263]
[1735741391632,8.4726138,190.79,190.76,2.6261]
[1735741391825,11.0982138,190.8,190.76,2.6261]
[1735741401238,2.6252,190.83,190.79,2.6257]
[1735741402240,2.6254,190.82,190.75,8.4726138]
[1735741402441,8.4726138,190.82,190.75,8.4726138]
[1735741402739,10.25203484,190.84,190.73,8.4726138]
[1735741402740,8.4726138,190.8,190.73,8.4726138]
[1735741403239,11.0983138,190.8,190.76,2.626]
[1735741404236,2.6258,190.79,190.75,2.6263]
[1735741406732,2.6258,190.79,190.73,8.4726138]
[1735741406733,11.0985138,190.78,190.74,2.6264]
[1735741410039,11.0985138,190.78,190.71,8.4726138]
[1735741410040,8.4726138,190.78,190.71,8.4726138]
[1735741410245,2.626,190.77,190.73,2.6266]
[1735741411141,2.626,190.77,190.74,2.6264]
[1735741411337,11.0985138,190.78,190.74,2.6264]
[1735741417644,2.626,190.77,190.74,2.6264]
[1735741418245,8.4726138,190.78,190.74,2.6264]
[1735741419447,11.0985138,190.78,190.74,2.6264]
[1735741423054,17.17899404,190.8,190.77,2.626]
[1735741423458,8.4726138,190.8,190.77,2.626]
[1735741424859,2.6254,190.82,190.75,8.4726138]
[1735741425057,8.4726138,190.82,190.75,8.4726138]
[1735741426553,8.4726138,190.82,190.78,2.6258]
[1735741426753,11.0980138,190.82,190.78,2.6258]
[1735741426956,8.4726138,190.82,190.75,8.4726138]
[1735741427259,11.0986138,190.78,190.71,8.4726138]
[1735741427859,11.0986138,190.78,190.73,2.6266]
[1735741428153,11.0986138,190.78,190.71,8.4726138]
[1735741428359,11.0986138,190.78,190.73,2.6264]
[1735741428560,11.0986138,190.78,190.71,8.4726138]
[1735741428962,11.0986138,190.78,190.74,2.6264]
[1735741431361,2.626,190.77,190.74,2.6264]
[1735741431659,8.4726138,190.76,190.71,2.6267]
[1735741431865,8.4726138,190.74,190.71,2.6267]
[1735741432261,8.4726138,190.74,190.68,3.04]
[1735741432564,8.4726138,190.72,190.67,1.76065346]
[1735741433162,8.4726138,190.72,190.69,2.6271]
[1735741434768,11.0992138,190.73,190.69,2.6271]
[1735741437666,8.4726138,190.71,190.68,2.6272]
[1735741438679,8.4726138,190.71,190.67,2.6274]
[1735741439067,8.4726138,190.69,190.65,50.01011664]
[1735741439268,8.4726138,190.67,190.62,2.628]
[1735741439574,8.4726138,190.67,190.61,1.5227]
[1735741439769,3.04,190.7,190.59,7.21067621]
[1735741439770,8.4726138,190.63,190.59,7.21067621]
[1735741440377,11.1007138,190.63,190.58,2.6286]
[1735741440770,8.4726138,190.63,190.58,2.6286]
[1735741442078,8.4726138,190.61,190.54,8.4726138]
[1735741442472,8.4726138,190.61,190.56,2.6289]
[1735741443671,8.4726138,190.61,190.54,8.4726138]
[1735741443978,8.4726138,190.61,190.58,2.6286]
[1735741447977,8.4726138,190.59,190.58,2.6286]
[1735741448180,11.5126138,190.59,190.49,4.7613]
[1735741448384,8.4726138,190.57,190.51,8.4726138]
[1735741449175,8.4726138,190.57,190.51,2.6295]
[1735741449379,8.4726138,190.55,190.49,13.2339138]
[1735741449977,8.4726138,190.55,190.49,1.641]
[1735741450173,8.4726138,190.55,190.47,3.04]
[1735741450377,8.4726138,190.55,190.48,8.4726138]
[1735741450777,8.4726138,190.55,190.5,2.6297]
[1735741450980,8.4726138,190.53,190.46,8.4726138]
[1735741451483,3.04,190.58,190.46,8.4726138]
[1735741451786,8.4726138,190.54,190.48,8.4726138]
[1735741452685,8.4726138,190.54,190.52,2.6295]
[1735741453078,3.04,190.58,190.5,8.4726138]
[1735741453282,8.4726138,190.57,190.56,2.6289]
[1735741455084,3.04,190.58,190.57,2.6288]
[1735741455285,11.5126138,190.58,190.57,2.6288]
[1735741455988,8.4726138,190.58,190.57,2.6288]
[1735741456183,4.5587,190.62,190.59,2.6285]
[1735741456184,8.4726138,190.6,190.59,2.6285]
[1735741456786,11.5126138,190.62,190.6,2.6283]
[1735741457190,8.4726138,190.62,190.6,2.6283]
[1735741457991,8.4726138,190.62,190.56,8.4726138]
[1735741458186,8.4726138,190.62,190.58,2.6285]
[1735741458383,8.4726138,190.6,190.58,2.6285]
[1735741460386,8.4726138,190.6,190.56,2.6288]
[1735741460790,8.4726138,190.6,190.54,8.4726138]
[1735741461189,8.4726138,190.58,190.52,13.0420138]
[1735741461391,8.4726138,190.56,190.5,8.4726138]
[1735741462494,8.4726138,190.56,190.54,2.6291]
[1735741466894,3.04,190.58,190.5,8.4726138]
[1735741467190,8.4726138,190.57,190.55,2.629]
[1735741467385,8.4726138,190.57,190.5,8.4726138]
[1735741469201,8.4726138,190.57,190.54,2.6291]
[1735741477204,8.4726138,190.57,190.5,8.4726138]
[1735741477705,2.6283,190.61,190.5,8.4726138]
[1735741477901,3.04,190.6,190.52,8.4726138]
[1735741478097,11.5126138,190.6,190.52,8.4726138]
[1735741478405,11.5126138,190.6,190.58,2.6286]
[1735741478605,11.5126138,190.6,190.52,8.4726138]
[1735741479107,11.5126138,190.6,190.57,2.6288]
[1735741479302,8.4726138,190.58,190.57,2.6288]
[1735741480107,8.4726138,190.58,190.52,8.4726138]
[1735741480406,8.4726138,190.58,190.55,2.6289]
[1735741480807,8.4726138,190.56,190.55,2.6289]
[1735741481311,8.4726138,190.56,190.54,2.6292]
[1735741481707,8.4726138,190.56,190.5,8.4726138]
[1735741482212,8.4726138,190.56,190.52,2.6293]
[1735741482709,8.4726138,190.56,190.53,2.6293]
[1735741497918,8.4726138,190.54,190.51,2.6296]
[1735741498721,8.4726138,190.54,190.48,8.4726138]
[1735741499018,8.4726138,190.54,190.52,2.6295]
[1735741502813,11.1018138,190.54,190.5,2.6296]
[1735741503018,8.4726138,190.52,190.46,10.1083138]
[1735741503419,8.4726138,190.52,190.47,4.1085087]
[1735741503625,8.4726138,190.52,190.48,4.1085087]
[1735741503822,8.4726138,190.52,190.46,10.1083138]
[1735741504027,8.4726138,190.52,190.47,4.10817606]
[1735741504324,8.4726138,190.52,190.48,4.10817606]
[1735741504527,8.4726138,190.52,190.5,2.6296]
[1735741505021,8.4726138,190.52,190.46,10.1083138]
[1735741505325,5.6691,190.55,190.48,8.4726138]
[1735741505326,8.4726138,190.54,190.48,8.4726138]
[1735741505515,8.4726138,190.54,190.49,4.10900746]
[1735741505720,8.4726138,190.54,190.51,2.6295]